[Event "Live Chess"]
[Site "Chess.com"]
[Date "2023.09.16"]
[Round "-"]
[White "Mariafernanda2805"]
[Black "Alplee"]
[Result "0-1"]
[WhiteElo "1000"]
[BlackElo "1949"]
[TimeControl "900+5"]
[EndTime "7:35:29 PDT"]
[Termination "Alplee venceu por xeque-mate"]

1. e4 {[%clk 0:14:47.1]} 1... c6 {[%clk 0:15:03.8]} 2. Bc4 {[%clk 0:14:48.6]}
2... d5 {[%clk 0:15:06.6]} 3. exd5 {[%clk 0:14:51.4]} 3... cxd5 {[%clk
0:15:11.5]} 4. Bd3 {[%clk 0:14:53.8]} 4... Nf6 {[%clk 0:15:14.8]} 5. Nf3 {[%clk
0:14:55.8]} 5... e6 {[%clk 0:15:18.1]} 6. O-O {[%clk 0:14:58.2]} 6... Bd6 {[%clk
0:15:20.8]} 7. h3 {[%clk 0:14:59.7]} 7... O-O {[%clk 0:15:23.9]} 8. Nc3 {[%clk
0:15:00.5]} 8... a6 {[%clk 0:15:25.6]} 9. Be2 {[%clk 0:15:02.1]} 9... Nc6 {[%clk
0:15:26.9]} 10. d3 {[%clk 0:15:02.6]} 10... Qc7 {[%clk 0:15:18.9]} 11. Bg5
{[%clk 0:15:02.9]} 11... Kh8 {[%clk 0:15:01]} 12. Bxf6 {[%clk 0:15:02.7]} 12...
gxf6 {[%clk 0:15:03]} 13. Qd2 {[%clk 0:14:59.3]} 13... Bf4 {[%clk 0:15:02.2]}
14. Qd1 {[%clk 0:14:53.9]} 14... Rg8 {[%clk 0:15:04.6]} 15. a3 {[%clk
0:14:35.4]} 15... Qd6 {[%clk 0:14:26.5]} 16. d4 {[%clk 0:14:35.7]} 16... e5
{[%clk 0:14:22.2]} 17. dxe5 {[%clk 0:14:36.8]} 17... fxe5 {[%clk 0:14:24.8]} 18.
Nxd5 {[%clk 0:14:28.1]} 18... Bxh3 {[%clk 0:14:06.8]} 19. Nh4 {[%clk 0:14:21.7]}
19... Qh6 {[%clk 0:13:11.2]} 20. Bf3 {[%clk 0:13:57.8]} 20... Qxh4 {[%clk
0:13:08.3]} 21. Qd3 {[%clk 0:13:53.1]} 21... Bxg2 {[%clk 0:13:03.7]} 22. Bxg2
{[%clk 0:13:53.9]} 22... Qh2# {[%clk 0:13:06.7]} 0-1

[Event "Live Chess"]
[Site "Chess.com"]
[Date "2023.09.16"]
[Round "-"]
[White "AnaHelenaAulicino"]
[Black "Corveloni_Ma"]
[Result "1/2-1/2"]
[WhiteElo "629"]
[BlackElo "1385"]
[TimeControl "900+5"]
[EndTime "7:35:53 PDT"]
[Termination "Empate por repetição"]

1. e4 {[%clk 0:15:02.8]} 1... c6 {[%clk 0:15:02.9]} 2. d4 {[%clk 0:15:05.5]}
2... d5 {[%clk 0:15:06.8]} 3. exd5 {[%clk 0:15:08.7]} 3... cxd5 {[%clk
0:15:10.4]} 4. Bb5+ {[%clk 0:15:07.8]} 4... Bd7 {[%clk 0:15:13.4]} 5. Bxd7+
{[%clk 0:15:07.8]} 5... Nxd7 {[%clk 0:15:17.2]} 6. Qf3 {[%clk 0:15:02]} 6...
Ngf6 {[%clk 0:15:19.7]} 7. Bg5 {[%clk 0:14:59.3]} 7... e6 {[%clk 0:15:16]} 8.
Bxf6 {[%clk 0:15:00.4]} 8... Nxf6 {[%clk 0:15:19.2]} 9. Ne2 {[%clk 0:14:55]}
9... Qb6 {[%clk 0:15:22.7]} 10. O-O {[%clk 0:14:56]} 10... Qxb2 {[%clk
0:15:16.6]} 11. Nbc3 {[%clk 0:14:56.9]} 11... Qxc2 {[%clk 0:15:13]} 12. Rac1
{[%clk 0:14:57.2]} 12... Qf5 {[%clk 0:15:05.8]} 13. Nf4 {[%clk 0:14:46.5]} 13...
Bd6 {[%clk 0:14:49.3]} 14. g3 {[%clk 0:14:43.1]} 14... O-O {[%clk 0:14:46.4]}
15. Nb5 {[%clk 0:14:42.2]} 15... Qe4 {[%clk 0:14:31.7]} 16. Qb3 {[%clk
0:14:28.1]} 16... Bxf4 {[%clk 0:14:25]} 17. Nc7 {[%clk 0:14:15.1]} 17... Bxc1
{[%clk 0:14:10.7]} 18. Nxa8 {[%clk 0:14:15.5]} 18... Rxa8 {[%clk 0:14:12.8]} 19.
Rxc1 {[%clk 0:14:16.6]} 19... Qxd4 {[%clk 0:14:16.9]} 20. Qc2 {[%clk 0:14:06.5]}
20... h6 {[%clk 0:14:13]} 21. Rd1 {[%clk 0:14:03.3]} 21... Qc4 {[%clk
0:14:07.9]} 22. Qb2 {[%clk 0:13:42.7]} 22... b5 {[%clk 0:14:07.9]} 23. Rc1
{[%clk 0:13:44]} 23... Qa4 {[%clk 0:14:00.9]} 24. Rc5 {[%clk 0:13:30.2]} 24...
Qd1+ {[%clk 0:13:55.5]} 25. Kg2 {[%clk 0:13:29.7]} 25... Rb8 {[%clk 0:13:26.8]}
26. Rc1 {[%clk 0:13:21]} 26... Qd3 {[%clk 0:13:16.8]} 27. Rc3 {[%clk 0:13:22.7]}
27... Qe4+ {[%clk 0:13:15.6]} 28. f3 {[%clk 0:13:23.5]} 28... Qe5 {[%clk
0:13:08]} 29. Rc8+ {[%clk 0:13:18.9]} 29... Rxc8 {[%clk 0:13:09.3]} 30. Qxe5
{[%clk 0:13:22.4]} 30... Rc2+ {[%clk 0:13:12.3]} 31. Kh3 {[%clk 0:13:25.1]}
31... Rxa2 {[%clk 0:13:01.7]} 32. Qb8+ {[%clk 0:13:22.7]} 32... Kh7 {[%clk
0:13:02.2]} 33. g4 {[%clk 0:13:13.1]} 33... a6 {[%clk 0:12:27]} 34. Kh4 {[%clk
0:13:10.9]} 34... g5+ {[%clk 0:12:14.8]} 35. Kg3 {[%clk 0:13:10.7]} 35... h5
{[%clk 0:12:05.2]} 36. gxh5 {[%clk 0:13:10.6]} 36... Nxh5+ {[%clk 0:12:08.2]}
37. Kg4 {[%clk 0:13:12.9]} 37... Rg2+ {[%clk 0:11:44.6]} 38. Kxh5 {[%clk
0:13:14.6]} 38... Rxh2+ {[%clk 0:11:42.9]} 39. Kxg5 {[%clk 0:13:17.2]} 39...
Rg2+ {[%clk 0:11:42.4]} 40. Kf6 {[%clk 0:13:18.9]} 40... Rg6+ {[%clk 0:11:43.6]}
41. Kxf7 {[%clk 0:13:21.4]} 41... Rg7+ {[%clk 0:11:46.7]} 42. Kxe6 {[%clk
0:13:22.2]} 42... Rg6+ {[%clk 0:11:49.8]} 43. Kf7 {[%clk 0:13:24.7]} 43... Rg7+
{[%clk 0:11:51.9]} 44. Kf6 {[%clk 0:13:26.7]} 44... Rg6+ {[%clk 0:11:55.1]} 45.
Kf7 {[%clk 0:13:30.9]} 45... Rg7+ {[%clk 0:11:59]} 46. Kf6 {[%clk 0:13:35]}
46... Rg6+ {[%clk 0:12:03.1]} 47. Kf7 {[%clk 0:13:39.1]} 1/2-1/2

[Event "Live Chess"]
[Site "Chess.com"]
[Date "2023.09.16"]
[Round "-"]
[White "RyanDiniz2011"]
[Black "Rafael-2021"]
[Result "1-0"]
[WhiteElo "1566"]
[BlackElo "1059"]
[TimeControl "900+5"]
[EndTime "7:36:21 PDT"]
[Termination "RyanDiniz2011 venceu por desistência"]

1. d4 {[%clk 0:15:03.2]} 1... d5 {[%clk 0:15:02.8]} 2. c4 {[%clk 0:15:07.8]}
2... c6 {[%clk 0:15:06]} 3. Nc3 {[%clk 0:15:12.4]} 3... Nf6 {[%clk 0:15:08.8]}
4. Bf4 {[%clk 0:15:16.7]} 4... Bf5 {[%clk 0:15:10.4]} 5. e3 {[%clk 0:15:21]}
5... e6 {[%clk 0:15:14.1]} 6. Nf3 {[%clk 0:15:25.3]} 6... Bb4 {[%clk 0:15:17]}
7. Be2 {[%clk 0:15:29.5]} 7... Nbd7 {[%clk 0:15:20]} 8. O-O {[%clk 0:15:32.2]}
8... Nb6 {[%clk 0:15:21.6]} 9. cxd5 {[%clk 0:15:34.8]} 9... cxd5 {[%clk
0:15:24.6]} 10. a3 {[%clk 0:15:37.5]} 10... Bxc3 {[%clk 0:15:26.7]} 11. bxc3
{[%clk 0:15:41.2]} 11... Ne4 {[%clk 0:15:27.3]} 12. Qb3 {[%clk 0:15:39.8]} 12...
Qc7 {[%clk 0:15:29]} 13. Bxc7 {[%clk 0:15:41.7]} 1-0

[Event "Live Chess"]
[Site "Chess.com"]
[Date "2023.09.16"]
[Round "-"]
[White "Ruanfelipe2014"]
[Black "asafefausto"]
[Result "1-0"]
[WhiteElo "996"]
[BlackElo "628"]
[TimeControl "900+5"]
[EndTime "7:36:59 PDT"]
[Termination "Ruanfelipe2014 venceu por xeque-mate"]

1. e4 {[%clk 0:15:01.7]} 1... e5 {[%clk 0:15:00.7]} 2. Bc4 {[%clk 0:14:57.5]}
2... Nf6 {[%clk 0:14:55.5]} 3. d3 {[%clk 0:14:56.1]} 3... c6 {[%clk 0:14:53.6]}
4. Bg5 {[%clk 0:14:50.8]} 4... Be7 {[%clk 0:14:43.2]} 5. Nf3 {[%clk 0:14:45.8]}
5... d5 {[%clk 0:14:41.8]} 6. exd5 {[%clk 0:14:45.4]} 6... cxd5 {[%clk 0:14:44]}
7. Bb5+ {[%clk 0:14:44.9]} 7... Bd7 {[%clk 0:14:28.2]} 8. Bxd7+ {[%clk
0:14:43.9]} 8... Qxd7 {[%clk 0:14:30.2]} 9. Nxe5 {[%clk 0:14:39.2]} 9... Qf5
{[%clk 0:13:42.3]} 10. Bxf6 {[%clk 0:14:10.2]} 10... Bb4+ {[%clk 0:13:33.6]} 11.
c3 {[%clk 0:14:09.4]} 11... Qxf6 {[%clk 0:13:34.4]} 12. Qe2 {[%clk 0:14:05.1]}
12... Qxe5 {[%clk 0:13:36.9]} 13. Qxe5+ {[%clk 0:14:06.8]} 13... Be7 {[%clk
0:13:23.9]} 14. Qxg7 {[%clk 0:14:07.4]} 14... Rf8 {[%clk 0:13:23.8]} 15. O-O
{[%clk 0:14:06.2]} 15... Nd7 {[%clk 0:13:08.4]} 16. Re1 {[%clk 0:13:51.8]} 16...
Rd8 {[%clk 0:12:31.8]} 17. Qxh7 {[%clk 0:13:38]} 17... Nf6 {[%clk 0:12:28.2]}
18. Qh4 {[%clk 0:13:32.2]} 18... Nd7 {[%clk 0:12:21.7]} 19. Qxe7# {[%clk
0:13:32.7]} 1-0

[Event "Live Chess"]
[Site "Chess.com"]
[Date "2023.09.16"]
[Round "-"]
[White "guilhermemazza"]
[Black "Alplee"]
[Result "0-1"]
[WhiteElo "457"]
[BlackElo "1949"]
[TimeControl "900+5"]
[EndTime "7:37:14 PDT"]
[Termination "Alplee venceu por desistência"]

1. e4 {[%clk 0:15:02.9]} 1... c5 {[%clk 0:15:00.8]} 2. f4 {[%clk 0:15:05.4]}
2... d6 {[%clk 0:15:04.2]} 3. c4 {[%clk 0:15:08.2]} 3... Nc6 {[%clk 0:15:07.8]}
4. Nf3 {[%clk 0:15:11.2]} 4... e6 {[%clk 0:15:09.1]} 5. Nc3 {[%clk 0:15:12.8]}
5... Be7 {[%clk 0:15:11]} 6. Bd3 {[%clk 0:15:15.1]} 6... Nf6 {[%clk 0:15:13.6]}
7. O-O {[%clk 0:15:17.9]} 7... O-O {[%clk 0:15:04.6]} 8. Qa4 {[%clk 0:15:17.1]}
8... Bd7 {[%clk 0:14:58.2]} 9. Re1 {[%clk 0:15:19.6]} 9... Nb4 {[%clk
0:14:56.5]} 10. Qb3 {[%clk 0:15:09.8]} 10... Nxd3 {[%clk 0:14:58.8]} 11. Rd1
{[%clk 0:15:12.4]} 0-1

[Event "Live Chess"]
[Site "Chess.com"]
[Date "2023.09.16"]
[Round "-"]
[White "isanamie12"]
[Black "Highlanderson"]
[Result "0-1"]
[WhiteElo "802"]
[BlackElo "1517"]
[TimeControl "900+5"]
[EndTime "7:38:34 PDT"]
[Termination "Highlanderson venceu por xeque-mate"]

1. d4 {[%clk 0:15:00.2]} 1... d5 {[%clk 0:15:02.6]} 2. c4 {[%clk 0:15:04.6]}
2... e6 {[%clk 0:15:04.8]} 3. Nc3 {[%clk 0:15:03.8]} 3... Nf6 {[%clk 0:15:06.6]}
4. Nf3 {[%clk 0:15:07.3]} 4... c5 {[%clk 0:15:09.8]} 5. Bg5 {[%clk 0:15:06.5]}
5... Bd6 {[%clk 0:14:55]} 6. e3 {[%clk 0:15:07.5]} 6... h6 {[%clk 0:14:49.5]} 7.
Bxf6 {[%clk 0:15:06.3]} 7... Qxf6 {[%clk 0:14:49.6]} 8. Be2 {[%clk 0:15:10.3]}
8... b6 {[%clk 0:14:46.4]} 9. O-O {[%clk 0:15:14.4]} 9... Bb7 {[%clk 0:14:47.3]}
10. Re1 {[%clk 0:15:14.7]} 10... O-O {[%clk 0:14:24]} 11. Bd3 {[%clk 0:15:11.6]}
11... Na6 {[%clk 0:13:43.7]} 12. Bc2 {[%clk 0:15:13.6]} 12... Nb4 {[%clk
0:13:47.1]} 13. Bb1 {[%clk 0:15:13.5]} 13... Bc7 {[%clk 0:13:25.6]} 14. a3
{[%clk 0:15:17]} 14... Na6 {[%clk 0:13:18.8]} 15. Qc2 {[%clk 0:15:21]} 15... Qg6
{[%clk 0:12:52.7]} 16. e4 {[%clk 0:15:08]} 16... dxc4 {[%clk 0:12:45.3]} 17. b4
{[%clk 0:15:06.1]} 17... cxd4 {[%clk 0:12:06.1]} 18. Nxd4 {[%clk 0:15:05.1]}
18... f5 {[%clk 0:11:41.9]} 19. exf5 {[%clk 0:14:59.7]} 19... Qxg2# {[%clk
0:11:36.7]} 0-1

[Event "Live Chess"]
[Site "Chess.com"]
[Date "2023.09.16"]
[Round "-"]
[White "pedromiguelchess"]
[Black "VitorEMS"]
[Result "1-0"]
[WhiteElo "1109"]
[BlackElo "721"]
[TimeControl "900+5"]
[EndTime "7:39:32 PDT"]
[Termination "pedromiguelchess venceu por desistência"]

1. e4 {[%clk 0:15:03.2]} 1... e5 {[%clk 0:15:02.8]} 2. Nf3 {[%clk 0:15:05.5]}
2... Nc6 {[%clk 0:14:53.1]} 3. Bc4 {[%clk 0:15:08.5]} 3... Nf6 {[%clk
0:14:54.8]} 4. d3 {[%clk 0:15:10.6]} 4... Bc5 {[%clk 0:14:51.5]} 5. c3 {[%clk
0:15:08.7]} 5... a6 {[%clk 0:14:45.5]} 6. Bb3 {[%clk 0:15:10.4]} 6... d5 {[%clk
0:14:34.1]} 7. exd5 {[%clk 0:15:10.9]} 7... Nxd5 {[%clk 0:14:31.5]} 8. Nbd2
{[%clk 0:15:07.9]} 8... Be6 {[%clk 0:14:32]} 9. O-O {[%clk 0:15:06.7]} 9... Qd6
{[%clk 0:14:31]} 10. Ne4 {[%clk 0:15:03.7]} 10... Qe7 {[%clk 0:14:24.2]} 11.
Nxc5 {[%clk 0:15:05.8]} 11... Qxc5 {[%clk 0:14:24.3]} 12. d4 {[%clk 0:14:53.4]}
12... exd4 {[%clk 0:14:24.8]} 13. cxd4 {[%clk 0:14:55]} 13... Qd6 {[%clk
0:14:18.8]} 14. Re1 {[%clk 0:14:09]} 14... O-O {[%clk 0:14:17.8]} 15. Ng5 {[%clk
0:13:55.5]} 15... Bd7 {[%clk 0:13:59.9]} 16. Qc2 {[%clk 0:13:45.8]} 16... g6
{[%clk 0:13:58.1]} 17. Qc5 {[%clk 0:13:19.9]} 17... Qxc5 {[%clk 0:13:43.4]} 18.
dxc5 {[%clk 0:13:21.8]} 18... Be6 {[%clk 0:13:16.4]} 19. Nxe6 {[%clk 0:13:21.3]}
19... fxe6 {[%clk 0:13:17.4]} 20. Rxe6 {[%clk 0:13:23.5]} 20... Rad8 {[%clk
0:13:16.8]} 21. Bh6 {[%clk 0:13:20.9]} 21... Rf5 {[%clk 0:13:15.1]} 22. Rae1
{[%clk 0:13:14.8]} 22... Kf7 {[%clk 0:13:12.7]} 23. Bxd5 {[%clk 0:12:33.6]}
23... Rdxd5 {[%clk 0:13:10.1]} 24. b4 {[%clk 0:12:21.9]} 24... Rd4 {[%clk
0:13:08.8]} 25. a3 {[%clk 0:12:13.3]} 25... Rfd5 {[%clk 0:13:09.3]} 26. h3
{[%clk 0:12:03.8]} 26... Rd1 {[%clk 0:13:09.7]} 27. Rxd1 {[%clk 0:12:04.6]}
27... Rxd1+ {[%clk 0:13:10.4]} 28. Kh2 {[%clk 0:12:04.3]} 28... Nd4 {[%clk
0:13:09.1]} 29. Re3 {[%clk 0:11:47.2]} 29... Nf5 {[%clk 0:13:05.5]} 30. Rf3
{[%clk 0:11:46]} 30... Ke6 {[%clk 0:13:03.8]} 31. Bf4 {[%clk 0:11:41.5]} 31...
Nh4 {[%clk 0:12:57.2]} 32. Re3+ {[%clk 0:11:37.5]} 32... Kf5 {[%clk 0:12:57.5]}
33. g3 {[%clk 0:11:33.2]} 1-0

[Event "Live Chess"]
[Site "Chess.com"]
[Date "2023.09.16"]
[Round "-"]
[White "RyanDiniz2011"]
[Black "asafefausto"]
[Result "1-0"]
[WhiteElo "1567"]
[BlackElo "627"]
[TimeControl "900+5"]
[EndTime "7:40:20 PDT"]
[Termination "RyanDiniz2011 venceu por xeque-mate"]

1. d4 {[%clk 0:15:01.6]} 1... Nc6 {[%clk 0:14:58.3]} 2. c4 {[%clk 0:15:05.4]}
2... f6 {[%clk 0:14:57]} 3. Nc3 {[%clk 0:15:09.2]} 3... e5 {[%clk 0:14:59.6]} 4.
dxe5 {[%clk 0:15:12.5]} 4... fxe5 {[%clk 0:15:01.6]} 5. e4 {[%clk 0:15:17.1]}
5... Nf6 {[%clk 0:15:01]} 6. Bd3 {[%clk 0:15:21.5]} 6... Bc5 {[%clk 0:15:01.9]}
7. Nf3 {[%clk 0:15:25.5]} 7... O-O {[%clk 0:15:02.9]} 8. O-O {[%clk 0:15:27.5]}
8... d6 {[%clk 0:14:49.7]} 9. Be3 {[%clk 0:15:29.2]} 9... Bxe3 {[%clk
0:14:49.7]} 10. fxe3 {[%clk 0:15:31.6]} 10... Be6 {[%clk 0:14:53]} 11. Ng5
{[%clk 0:15:34]} 11... Bg4 {[%clk 0:14:38.2]} 12. Be2 {[%clk 0:15:34.5]} 12...
Re8 {[%clk 0:14:17.6]} 13. Bxg4 {[%clk 0:15:36]} 13... Nxg4 {[%clk 0:14:19.9]}
14. Qxg4 {[%clk 0:15:39.3]} 14... Re7 {[%clk 0:14:07.4]} 15. Nd5 {[%clk
0:15:39.7]} 15... Qd7 {[%clk 0:14:07.8]} 16. Nxe7+ {[%clk 0:15:40.5]} 16... Kh8
{[%clk 0:13:56.2]} 17. Nf7# {[%clk 0:15:38.3]} 1-0

[Event "Live Chess"]
[Site "Chess.com"]
[Date "2023.09.16"]
[Round "-"]
[White "Sabadin21"]
[Black "PedroRossi14"]
[Result "1-0"]
[WhiteElo "882"]
[BlackElo "515"]
[TimeControl "900+5"]
[EndTime "7:42:17 PDT"]
[Termination "Sabadin21 venceu por desistência"]

1. e4 {[%clk 0:15:02]} 1... c6 {[%clk 0:15:01.5]} 2. Nf3 {[%clk 0:15:06.2]} 2...
d5 {[%clk 0:15:04.5]} 3. exd5 {[%clk 0:15:08.7]} 3... cxd5 {[%clk 0:15:07.2]} 4.
d4 {[%clk 0:15:13]} 4... Nc6 {[%clk 0:15:08.1]} 5. Bd3 {[%clk 0:15:16.6]} 5...
e6 {[%clk 0:15:09.8]} 6. O-O {[%clk 0:15:19.6]} 6... Nf6 {[%clk 0:15:14]} 7. Be3
{[%clk 0:15:22.2]} 7... Be7 {[%clk 0:15:16.4]} 8. Nc3 {[%clk 0:15:25.3]} 8...
O-O {[%clk 0:15:20.1]} 9. Qd2 {[%clk 0:15:28.4]} 9... Bd6 {[%clk 0:15:03.7]} 10.
Nb5 {[%clk 0:15:22.2]} 10... Bb8 {[%clk 0:15:01.1]} 11. c4 {[%clk 0:15:19.2]}
11... Ne5 {[%clk 0:14:55.2]} 12. dxe5 {[%clk 0:15:17.2]} 12... Bxe5 {[%clk
0:14:58.3]} 13. Nxe5 {[%clk 0:15:20.5]} 13... dxc4 {[%clk 0:15:00.7]} 14. Bxc4
{[%clk 0:15:22.3]} 14... Qe7 {[%clk 0:14:50.9]} 15. Nc3 {[%clk 0:15:22.5]} 15...
Rd8 {[%clk 0:14:53.8]} 16. Qe2 {[%clk 0:15:22.4]} 16... b6 {[%clk 0:14:38.9]}
17. Nc6 {[%clk 0:15:22]} 17... Qd7 {[%clk 0:14:35.4]} 18. Nxd8 {[%clk
0:15:24.3]} 18... Qxd8 {[%clk 0:14:37.7]} 19. Rfd1 {[%clk 0:15:28.3]} 19... Qc7
{[%clk 0:14:34.8]} 20. Bf4 {[%clk 0:15:18.4]} 20... Qc6 {[%clk 0:14:31]} 21. Ne4
{[%clk 0:14:52.4]} 21... Bb7 {[%clk 0:14:16.4]} 22. Bd3 {[%clk 0:14:13.3]} 22...
Nxe4 {[%clk 0:14:14.5]} 23. Bxe4 {[%clk 0:14:15.4]} 23... Qxe4 {[%clk
0:14:17.7]} 24. Qxe4 {[%clk 0:14:19.2]} 24... Bxe4 {[%clk 0:14:21.6]} 25. Rd4
{[%clk 0:14:19.9]} 25... Bd5 {[%clk 0:14:18.4]} 26. Rad1 {[%clk 0:14:13.3]}
26... Rd8 {[%clk 0:14:20.2]} 27. Bc7 {[%clk 0:14:12.3]} 27... Rd7 {[%clk
0:14:23.1]} 28. Bg3 {[%clk 0:14:05.9]} 28... f5 {[%clk 0:14:24]} 29. Bb8 {[%clk
0:13:37.3]} 29... a5 {[%clk 0:14:22.4]} 30. b4 {[%clk 0:13:27.9]} 30... axb4
{[%clk 0:14:21.9]} 31. Rxb4 {[%clk 0:13:30.1]} 1-0

[Event "Live Chess"]
[Site "Chess.com"]
[Date "2023.09.16"]
[Round "-"]
[White "Alplee"]
[Black "AnaHelenaAulicino"]
[Result "1-0"]
[WhiteElo "1949"]
[BlackElo "629"]
[TimeControl "900+5"]
[EndTime "7:42:31 PDT"]
[Termination "Alplee venceu por desistência"]

1. d4 {[%clk 0:15:03.4]} 1... d5 {[%clk 0:15:02.4]} 2. c4 {[%clk 0:15:07.4]}
2... dxc4 {[%clk 0:15:02.4]} 3. Nf3 {[%clk 0:15:11.7]} 3... Bf5 {[%clk
0:15:03.1]} 4. e3 {[%clk 0:15:15]} 4... Nf6 {[%clk 0:15:02.6]} 5. Bxc4 {[%clk
0:15:18.2]} 5... Ne4 {[%clk 0:15:03]} 6. Nc3 {[%clk 0:15:16.8]} 6... Nxc3 {[%clk
0:15:00.4]} 7. bxc3 {[%clk 0:15:20.2]} 7... e6 {[%clk 0:15:01.4]} 8. O-O {[%clk
0:15:19.3]} 8... Qf6 {[%clk 0:14:55.9]} 9. Bd3 {[%clk 0:15:21.4]} 9... Qg6
{[%clk 0:14:51.3]} 10. Nh4 {[%clk 0:15:16.6]} 10... Bg4 {[%clk 0:14:45.7]} 11.
Nxg6 {[%clk 0:15:18.1]} 11... Bxd1 {[%clk 0:14:46.5]} 12. Nxh8 {[%clk 0:15:21]}
12... Bd6 {[%clk 0:14:47.9]} 13. Rxd1 {[%clk 0:15:23]} 13... Nc6 {[%clk
0:14:45.7]} 14. Bb5 {[%clk 0:15:24.4]} 14... O-O-O {[%clk 0:14:46.4]} 15. Bxc6
{[%clk 0:15:26.1]} 15... bxc6 {[%clk 0:14:48.1]} 16. Nxf7 {[%clk 0:15:30.5]}
16... Rd7 {[%clk 0:14:48.5]} 17. Nxd6+ {[%clk 0:15:34]} 17... Rxd6 {[%clk
0:14:50.5]} 18. Ba3 {[%clk 0:15:38.5]} 18... Rd5 {[%clk 0:14:51.6]} 19. Rab1
{[%clk 0:15:41.7]} 19... Rg5 {[%clk 0:14:52.3]} 20. Rb3 {[%clk 0:15:45.1]} 20...
h5 {[%clk 0:14:50.7]} 21. Rdb1 {[%clk 0:15:48.7]} 21... h4 {[%clk 0:14:53.2]}
22. Rb8+ {[%clk 0:15:52.3]} 22... Kd7 {[%clk 0:14:56.2]} 23. R1b7 {[%clk
0:15:56.6]} 23... h3 {[%clk 0:14:58.2]} 24. g3 {[%clk 0:16:00]} 24... Ra5 {[%clk
0:14:58.1]} 25. Rb3 {[%clk 0:15:51.1]} 25... Rf5 {[%clk 0:14:44.4]} 26. Rh8
{[%clk 0:15:52.6]} 26... e5 {[%clk 0:14:32.7]} 27. Rxh3 {[%clk 0:15:54.9]} 27...
exd4 {[%clk 0:14:34.6]} 28. cxd4 {[%clk 0:15:59]} 1-0

[Event "Live Chess"]
[Site "Chess.com"]
[Date "2023.09.16"]
[Round "-"]
[White "Highlanderson"]
[Black "guilhermemazza"]
[Result "1-0"]
[WhiteElo "1517"]
[BlackElo "457"]
[TimeControl "900+5"]
[EndTime "7:44:09 PDT"]
[Termination "Highlanderson venceu por desistência"]

1. e4 {[%clk 0:15:01.7]} 1... e5 {[%clk 0:15:01.9]} 2. a3 {[%clk 0:14:57.2]}
2... d6 {[%clk 0:14:57.9]} 3. Nf3 {[%clk 0:14:57.8]} 3... Nd7 {[%clk 0:14:58.6]}
4. d3 {[%clk 0:14:54.1]} 4... Ngf6 {[%clk 0:14:29.4]} 5. Nc3 {[%clk 0:14:48.3]}
5... c5 {[%clk 0:14:29.9]} 6. Be3 {[%clk 0:14:26.8]} 6... d5 {[%clk 0:14:20.6]}
7. Na2 {[%clk 0:13:36.2]} 7... c4 {[%clk 0:14:20.7]} 8. dxc4 {[%clk 0:13:11.6]}
8... dxe4 {[%clk 0:14:17.3]} 9. Nd2 {[%clk 0:12:58.2]} 9... Ng4 {[%clk
0:14:15.8]} 10. Nxe4 {[%clk 0:12:47.7]} 10... Nxe3 {[%clk 0:14:18.8]} 11. fxe3
{[%clk 0:12:51.7]} 11... Qa5+ {[%clk 0:14:17.9]} 12. Nac3 {[%clk 0:12:42.4]}
12... Nc5 {[%clk 0:14:16.4]} 13. b4 {[%clk 0:12:38.6]} 13... Qb6 {[%clk
0:14:15.6]} 1-0